fUSD/lending_fUSD_20251222
["ID","MTS","AMOUNT","RATE_DAILY","PERIOD"]
[399496318,1766417265711,899.33,8.666e-05,2]
[399496319,1766417266126,899.33,9.06e-05,2]
[399496320,1766417266341,899.33,9.454e-05,2]
[399496321,1766417266581,899.33,9.848e-05,2]
[399496323,1766417319664,4213.62261708,0.0001,2]
[399496337,1766417431912,-437.04724884,0.00010242,2]
[399496339,1766417431923,-462.28275116,0.00010242,2]
[399496341,1766417431933,-120.90273408,0.00010636,2]
[399496342,1766417431944,-778.42726592,0.00010636,2]
[399496343,1766417431955,-899.33,0.0001103,2]
[399496344,1766417431968,-195.0,0.00011266,2]
[399496345,1766417431978,-195.0,0.00011266,2]
[399496346,1766417431986,-300.0,0.00011266,2]
[399496347,1766417431996,-899.33,0.00011424,2]
[399496348,1766417432006,-899.33,0.00011818,2]
[399496349,1766417432015,-63.87654928,0.00012212,2]
[399496350,1766417432026,-590.2430935,0.00012212,2]
[399496351,1766417432043,-245.21035722,0.00012212,2]
[399496352,1766417432053,-306.47867024,0.000125,2]
[399496353,1766417432062,-899.33,0.00012606,2]
[399496354,1766417432072,-1200.0,0.00012988,2]
[399496355,1766417432081,-150.0,0.00012989,2]
[399496356,1766417432090,-500.0,0.00012989,2]
[399496357,1766417432099,-373.93853303,0.00012989,2]
[399496358,1766417432109,-500.0,0.00012989,2]
[399496359,1766417432119,-162.05499419,0.0001299,2]
[399496360,1766417432134,-10258.53278528,0.0001299,2]
[399496361,1766417432146,-276.65889505,0.0001299,2]
[399496362,1766417432162,-42825.73777609,0.0001299,2]
[399496363,1766417432171,-899.33,0.00012999,2]
[399496364,1766417432180,-458.0,0.00013386,2]
[399496365,1766417432190,-493.0,0.00013386,2]
[399496366,1766417432199,-899.33,0.00013393,2]
[399496367,1766417432208,-202.67,0.00013614,2]
[399496368,1766417432218,-150.0,0.00013785,2]
[399496369,1766417432228,-899.33,0.00013787,2]
[399496370,1766417432237,-899.33,0.00014181,2]
[399496372,1766417432247,-300.0,0.00014213,2]
[399496373,1766417432256,-300.0,0.00014213,2]
[399496374,1766417432265,-300.0,0.00014213,2]
[399496375,1766417432274,-1680.0,0.00014287,2]
[399496376,1766417432284,-300.0,0.00014289,2]
[399496377,1766417432293,-195.0,0.00014289,2]
[399496378,1766417432303,-600.0,0.00014289,2]
[399496379,1766417432312,-500.0,0.000143,2]
[399496380,1766417432321,-899.33,0.00014575,2]
[399496381,1766417432331,-899.33,0.00014969,2]
[399496382,1766417432341,-10376.86,0.00015064,2]
[399496383,1766417432350,-234.19223383,0.00015265,2]
[399496384,1766417432362,-2522.72556617,0.00015265,2]
[399496385,1766417432373,-999.0,0.00015295,3]
[399496386,1766417432382,-203.44075247,0.00015364,2]
[399496387,1766417432392,-10327.87415515,0.00015365,2]
[399496388,1766417432403,-22420.87764383,0.00015365,2]
[399496389,1766417432415,-298.02975,0.00015365,2]
[399496390,1766417432431,-250.0,0.00015365,2]
[399496391,1766417432443,-396.09815507,0.00015365,2]
[399496534,1766417438089,-7389.36454677,0.00015365,2]
[399496535,1766417438101,-6217.11508911,0.00015365,2]
[399496536,1766417438113,-2576.0915,0.00015365,2]
[399496537,1766417438140,-37958.31916007,0.00015365,2]
[399496538,1766417438150,-35409.71,0.00015365,2]
[399496539,1766417438160,-3114.13,0.00015365,2]
[399496540,1766417438170,-999.99,0.00015365,2]
[399496541,1766417438180,-1474.41,0.00015365,2]
[399496542,1766417438189,-1102.4,0.00015365,2]
[399496543,1766417438198,-2351.0,0.00015715,2]
[399496544,1766417438208,-166.66,0.00015832,2]
[399496545,1766417438217,-4319.09119856,0.000159,2]
[399496546,1766417438227,-152.1,0.00015911,2]
[399496547,1766417438237,-151.2,0.00015911,2]
[399496548,1766417438247,-500.0,0.00015911,2]
[399496549,1766417438256,-186.98364243,0.0001593,2]
[399496550,1766417438266,-200.0,0.0001599,2]
[399496551,1766417438276,-151.0,0.0001599,2]
[399496552,1766417438285,-151.0,0.0001599,2]
[399496553,1766417438295,-151.0,0.0001599,2]
[399496554,1766417438304,-151.0,0.0001599,2]
[399496555,1766417438314,-151.0,0.0001599,2]
[399496556,1766417438323,-151.0,0.0001599,2]
[399496557,1766417438333,-151.0,0.0001599,2]
[399496558,1766417438342,-151.0,0.0001599,2]
[399496559,1766417438352,-151.0,0.0001599,2]
[399496560,1766417438362,-151.0,0.0001599,2]
[399496561,1766417438372,-151.0,0.0001599,2]
[399496562,1766417438382,-151.0,0.0001599,2]
[399496563,1766417438392,-151.0,0.0001599,2]
[399496564,1766417438402,-500.0,0.0001599,2]
[399496565,1766417438412,-500.0,0.0001599,2]
[399496567,1766417438421,-200.0,0.0001599,2]
[399496569,1766417438431,-500.0,0.0001599,2]
[399496571,1766417438440,-500.0,0.0001599,2]
[399496572,1766417438449,-500.0,0.0001599,2]
[399496573,1766417438459,-500.0,0.0001599,2]
[399496574,1766417438468,-500.0,0.0001599,2]
[399496575,1766417438478,-500.0,0.0001599,2]
[399496576,1766417438487,-200.0,0.0001599,2]
[399496577,1766417438497,-500.0,0.0001599,2]
[399496578,1766417438506,-500.0,0.0001599,2]
[399496579,1766417438515,-500.0,0.0001599,2]
[399496580,1766417438525,-500.0,0.0001599,2]
[399496581,1766417438534,-500.0,0.0001599,2]
[399496582,1766417438543,-442.67728296,0.00015999,2]
[399496583,1766417438552,-58591.48938697,0.00016,2]
[399496584,1766417438568,-192446.21328958,0.00016,2]
[399496585,1766417438577,-69860.56751233,0.00016,4]
[399496586,1766417438586,-4319.09119852,0.00016011,2]
[399496587,1766417438595,-151.90448787,0.00016056,2]
[399496588,1766417438604,-186.98364236,0.00016079,2]
[399496589,1766417438614,-4319.09119852,0.00016122,2]
[399496590,1766417438624,-500.0,0.00016148,2]
[399496591,1766417438633,-537.18359401,0.00016148,2]
[399496592,1766417438642,-160.47,0.00016169,2]
[399496593,1766417438652,-500.0,0.00016185,2]
[399496594,1766417438661,-5000.0,0.000162,5]
[399496595,1766417438671,-186.98364236,0.00016228,2]
[399496596,1766417438680,-515.36,0.00016231,3]
[399496597,1766417438690,-4319.09119852,0.00016233,2]
[399496598,1766417438700,-1268.943,0.00016251,2]
[399496599,1766417438709,-520.81,0.00016251,2]
[399496600,1766417438718,-1198.0,0.00016251,2]
[399496601,1766417438728,-911.0,0.00016251,2]
[399496602,1766417438737,-1609.0,0.00016251,2]
[399496603,1766417438746,-612.0,0.00016251,2]
[399496604,1766417438756,-640.375,0.00016251,2]
[399496605,1766417438765,-322.6107,0.00016255,2]
[399496606,1766417438775,-194.72792766,0.00016255,2]
[399496607,1766417438785,-151.0,0.00016255,2]
[399496608,1766417438794,-500.0,0.00016255,2]
[399496609,1766417438804,-500.0,0.00016255,2]
[399496610,1766417438813,-500.0,0.00016255,2]
[399496611,1766417438822,-500.0,0.00016255,2]
[399496612,1766417438832,-500.0,0.00016255,2]
[399496613,1766417438841,-500.0,0.00016255,2]
[399496614,1766417438850,-500.0,0.00016255,2]
[399496615,1766417438859,-500.0,0.00016255,2]
[399496616,1766417438869,-548.92065365,0.00016255,2]
[399496617,1766417438879,-500.0,0.00016255,2]
[399496618,1766417438888,-500.0,0.00016255,2]
[399496619,1766417438898,-500.0,0.00016255,2]
[399496620,1766417438908,-500.0,0.00016255,2]
[399496621,1766417438918,-500.0,0.00016255,2]
[399496622,1766417438927,-500.0,0.00016255,2]
[399496623,1766417438936,-500.0,0.00016255,2]
[399496624,1766417438946,-500.0,0.00016255,2]
[399496625,1766417438956,-500.0,0.00016255,2]
[399496626,1766417438971,-500.0,0.00016255,2]
[399496627,1766417438981,-322.36888895,0.00016255,2]
[399496628,1766417438991,-500.0,0.00016255,2]
[399496629,1766417439001,-500.0,0.00016255,2]
[399496630,1766417439011,-500.0,0.00016255,2]
[399496631,1766417439021,-250.0,0.00016255,2]
[399496632,1766417439030,-8.62226664,0.00016255,2]
[399496633,1766417439047,-241.37773336,0.00016255,2]
[399496634,1766417439057,-208.5647437,0.00016255,2]
[399496635,1766417439066,-250.0,0.00016255,2]
[399496636,1766417439076,-533.88981491,0.00016255,2]
[399496637,1766417439086,-500.0,0.00016255,2]
[399496638,1766417439098,-151.0,0.00016255,2]
[399496639,1766417439107,-670.58624095,0.00016255,2]
[399496640,1766417439117,-500.0,0.00016255,2]
[399496641,1766417439128,-500.0,0.00016255,2]
[399496642,1766417439138,-250.0,0.00016255,2]
[399496643,1766417439148,-500.0,0.00016255,2]
[399496644,1766417439158,-250.0,0.00016255,2]
[399496645,1766417439168,-500.0,0.00016255,2]
[399496646,1766417439177,-250.0,0.00016255,2]
[399496647,1766417439187,-500.0,0.00016255,2]
[399496648,1766417439196,-250.0,0.00016255,2]
[399496649,1766417439206,-500.0,0.00016255,2]
[399496650,1766417439216,-250.0,0.00016255,2]
[399496651,1766417439227,-500.0,0.00016255,2]
[399496652,1766417439237,-250.0,0.00016255,2]
[399496653,1766417439247,-500.0,0.00016255,2]
[399496654,1766417439257,-250.0,0.00016255,2]
[399496655,1766417439267,-500.0,0.00016255,2]
[399496656,1766417439277,-250.0,0.00016255,2]
[399496657,1766417439287,-500.0,0.00016255,2]
[399496658,1766417439297,-250.0,0.00016255,2]
[399496659,1766417439306,-500.0,0.00016255,2]
[399496660,1766417439315,-500.0,0.00016255,2]
[399496661,1766417439324,-250.0,0.00016255,2]
[399496662,1766417439334,-250.0,0.00016255,2]
[399496663,1766417439343,-250.0,0.00016255,2]
[399496664,1766417439352,-250.0,0.00016255,2]
[399496665,1766417439361,-466.53384195,0.00016255,2]
[399496666,1766417439372,-250.0,0.00016255,2]
[399496667,1766417439381,-250.0,0.00016255,2]
[399496668,1766417439391,-250.0,0.00016255,2]
[399496669,1766417439399,-250.0,0.00016255,2]
[399496670,1766417439409,-250.0,0.00016255,2]
[399496671,1766417439418,-250.0,0.00016255,2]
[399496672,1766417439427,-250.0,0.00016255,2]
[399496673,1766417439436,-151.0,0.00016255,2]
[399496674,1766417439445,-250.0,0.00016255,2]
[399496675,1766417439454,-250.0,0.00016255,2]
[399496676,1766417439463,-250.0,0.00016255,2]
[399496677,1766417439472,-250.0,0.00016255,2]
[399496678,1766417439483,-250.0,0.00016255,2]
[399496679,1766417439492,-250.0,0.00016255,2]
[399496680,1766417439501,-250.0,0.00016255,2]
[399496681,1766417439510,-250.0,0.00016255,2]
[399496682,1766417439519,-267.16027015,0.00016255,2]
[399496683,1766417439529,-250.0,0.00016255,2]
[399496684,1766417439539,-204.46018322,0.00016255,2]
[399496685,1766417439554,-45.53981678,0.00016255,2]
[399496686,1766417439563,-250.0,0.00016255,2]
[399496687,1766417439572,-250.0,0.00016255,2]
[399496688,1766417439581,-250.0,0.00016255,2]
[399496689,1766417439590,-250.0,0.00016255,2]
[399496690,1766417439599,-250.0,0.00016255,2]
[399496691,1766417439610,-250.0,0.00016255,2]
[399496692,1766417439620,-250.0,0.00016255,2]
[399496693,1766417439629,-250.0,0.00016255,2]
[399496694,1766417439638,-2421.39,0.00016295,2]
[399496695,1766417439647,-4319.09119852,0.00016344,2]
[399496696,1766417439658,-166.66,0.00016355,2]
[399496697,1766417439667,-186.98364236,0.00016377,2]
[399496698,1766417439676,-1179.2,0.00016438,2]
[399496699,1766417439685,-500.0,0.00016438,2]
[399496700,1766417439695,-500.0,0.00016438,2]
[399496701,1766417439705,-218.34186393,0.00016438,2]
[399496702,1766417439714,-500.0,0.00016438,2]
[399496703,1766417439723,-500.0,0.00016438,2]
[399496704,1766417439733,-12318.33,0.00016438,2]
[399496705,1766417439742,-4319.09119852,0.00016456,2]
[399496706,1766417439751,-500.0,0.00016459,2]
[399496707,1766417439761,-183.14,0.00016477,2]
[399496708,1766417439771,-186.98364236,0.00016526,2]
[399496710,1766417439780,-200.0,0.00016538,2]
[399496711,1766417439790,-200.0,0.00016538,2]
[399496712,1766417439799,-500.0,0.00016538,2]
[399496713,1766417439808,-4319.09119852,0.00016567,2]
[399496714,1766417439817,-515.57317345,0.00016653,2]
[399496715,1766417439827,-500.0,0.00016653,2]
[399496716,1766417439836,-186.98364236,0.00016675,2]
[399496717,1766417439845,-1179.2,0.00016712,2]
[399496718,1766417439855,-536.45390534,0.00016733,2]
[399496719,1766417439864,-168.0,0.00016773,2]
[399496720,1766417439874,-500.0,0.00016781,2]
[399496721,1766417439883,-500.0,0.00016781,2]
[399496722,1766417439892,-150.0,0.00016781,2]
[399496723,1766417439901,-150.0,0.00016781,2]
[399496724,1766417439911,-150.0,0.00016781,2]
[399496725,1766417439920,-150.0,0.00016781,2]
[399496726,1766417439930,-500.0,0.00016781,2]
[399496727,1766417439939,-150.0,0.00016781,2]
[399496728,1766417439948,-500.0,0.00016781,2]
[399496729,1766417439963,-150.0,0.00016781,2]
[399496730,1766417439972,-213.55187487,0.0001679,2]
[399496731,1766417439981,-500.0,0.00016799,2]
[399496732,1766417439991,-500.0,0.00016799,2]
[399496733,1766417440001,-500.0,0.00016799,2]
[399496734,1766417440010,-500.0,0.00016799,2]
[399496736,1766417440019,-500.0,0.00016799,2]
[399496737,1766417440028,-500.0,0.00016799,2]
[399496738,1766417440038,-500.0,0.00016799,2]
[399496739,1766417440047,-500.0,0.00016799,2]
[399496740,1766417440058,-500.0,0.00016799,2]
[399496741,1766417440067,-370.97705024,0.00016799,2]
[399496742,1766417440076,-150.0,0.00016799,2]
[399496743,1766417440085,-578.59832559,0.00016799,2]
[399496744,1766417440094,-29226.8942747,0.000168,2]
[399496745,1766417440114,-1473.76910163,0.000168,2]
[399496746,1766417440127,-327.20111037,0.000168,2]
[399496747,1766417440271,-266989.61899025,0.000168,2]
[399496748,1766417440283,-2772.89293441,0.000168,2]
[399496749,1766417440295,-699209.62358864,0.000168,2]
[399496750,1766417440304,-600.0,0.000168,2]
[399496751,1766417440314,-201.93286099,0.00016803,2]
[399496752,1766417440323,-213.14631305,0.00016803,2]
[399496753,1766417440332,-553.64373807,0.00016803,2]
[399496754,1766417440342,-553.42007769,0.00016808,2]
[399496755,1766417440351,-505.01496115,0.00016808,2]
[399496756,1766417440361,-150.0,0.00016808,2]
[399496757,1766417440371,-150.0,0.00016808,2]
[399496758,1766417440380,-150.0,0.00016808,2]
[399496759,1766417440390,-150.0,0.00016808,2]
[399496760,1766417440399,-500.0,0.00016808,2]
[399496761,1766417440411,-584.32985892,0.00016808,2]
[399496762,1766417440420,-186.98364236,0.00016824,2]
[399496763,1766417440429,-168.0,0.00016827,2]
[399496764,1766417440439,-187.0,0.00016836,2]
[399496765,1766417440448,-150.0,0.00016836,2]
[399496766,1766417440457,-168.0,0.00016845,2]
[399496767,1766417440467,-168.0,0.00016847,2]
[399496768,1766417440477,-166.66,0.00016877,2]
[399496769,1766417440486,-545.96,0.0001689,2]
[399496770,1766417440495,-25000.0,0.00016891,3]
[399496771,1766417440505,-500.0,0.00016899,2]
[399496772,1766417440514,-500.0,0.00016899,2]
[399496773,1766417440524,-500.0,0.00016899,2]
[399496774,1766417440534,-500.0,0.00016899,2]
[399496775,1766417440544,-10000.0,0.000169,2]
[399496776,1766417440554,-964.62189762,0.000169,2]
[399496777,1766417440564,-25000.0,0.000169,3]
[399496778,1766417440574,-2301.27242266,0.000169,2]
[399496780,1766417440583,-635.14785101,0.000169,2]
[399496781,1766417440593,-1607.62423946,0.000169,2]
[399496782,1766417440602,-168.0,0.00016921,2]
[399496783,1766417440612,-457.0,0.00016959,2]
[399496784,1766417440859,-500.0,0.00016973,2]
[399496785,1766417440870,-500.0,0.00016973,2]
[399496786,1766417440880,-500.0,0.00016973,2]
[399496787,1766417440889,-500.0,0.00016973,2]
[399496788,1766417440899,-500.0,0.00016973,2]
[399496789,1766417440908,-189.51040259,0.00016973,2]
[399496790,1766417440917,-500.0,0.00016973,2]
[399496791,1766417440927,-500.0,0.00016973,2]
[399496792,1766417440936,-500.0,0.00016973,2]
[399496793,1766417440945,-500.0,0.00016973,2]
[399496794,1766417440955,-473.51090272,0.00016973,2]
[399496795,1766417440967,-187.58612974,0.00016973,2]
[399496796,1766417440976,-500.0,0.00016973,2]
[399496797,1766417440985,-323.69632607,0.00016973,2]
[399496798,1766417440994,-500.0,0.00016973,2]
[399496799,1766417441004,-500.0,0.00016973,2]
[399496800,1766417441013,-500.0,0.00016973,2]
[399496801,1766417441022,-500.0,0.00016973,2]
[399496802,1766417441032,-500.0,0.00016973,2]
[399496803,1766417441041,-500.0,0.00016973,2]
[399496804,1766417441051,-500.0,0.00016973,2]
[399496805,1766417441060,-500.0,0.00016973,2]
[399496806,1766417441069,-500.0,0.00016973,2]
[399496807,1766417441078,-500.0,0.00016973,2]
[399496808,1766417441087,-500.0,0.00016973,2]
[399496809,1766417441096,-500.0,0.00016973,2]
[399496810,1766417441106,-516.53532775,0.00016973,2]
[399496811,1766417441115,-500.0,0.00016973,2]
[399496812,1766417441126,-166.96828513,0.00016973,2]
[399496813,1766417441135,-161.12986217,0.00016973,2]
[399496814,1766417441144,-500.45563157,0.00016973,2]
[399496815,1766417441153,-500.0,0.00016973,2]
[399496816,1766417441162,-500.0,0.00016973,2]
[399496817,1766417441171,-500.16141079,0.00016973,2]
[399496818,1766417441181,-500.0,0.00016973,2]
[399496819,1766417441190,-500.0,0.00016973,2]
[399496820,1766417441199,-500.0,0.00016973,2]
[399496821,1766417441208,-523.16788729,0.00016973,2]
[399496822,1766417441217,-500.0,0.00016973,2]
[399496823,1766417441226,-500.0,0.00016973,2]
[399496824,1766417441235,-500.0,0.00016973,2]
[399496825,1766417441244,-468.6988227,0.00016973,2]
[399496826,1766417441254,-500.19873097,0.00016973,2]
[399496827,1766417441263,-500.0,0.00016973,2]
[399496828,1766417441272,-500.0,0.00016973,2]
[399496829,1766417441282,-500.0,0.00016973,2]
[399496830,1766417441291,-500.0,0.00016973,2]
[399496831,1766417441299,-220.3394429,0.00016973,2]
[399496832,1766417441308,-500.0,0.00016973,2]
[399496833,1766417441318,-500.0,0.00016973,2]
[399496834,1766417441327,-500.0,0.00016973,2]
[399496835,1766417441336,-741.82764398,0.00016973,2]
[399496836,1766417441345,-186.98364236,0.00016973,2]
[399496837,1766417441354,-150.0,0.00016973,2]
[399496838,1766417441363,-401.11567192,0.00016981,2]
[399496839,1766417441373,-500.0,0.00016981,2]
[399496840,1766417441382,-168.0,0.00016982,2]
[399496841,1766417441391,-1179.2,0.00016986,2]
[399496842,1766417441401,-53107.26,0.00016986,2]
[399496843,1766417441410,-213.55187487,0.0001699,2]
[399496844,1766417441419,-213.55187487,0.0001699,2]
[399496845,1766417441428,-446.80975449,0.00016999,2]
[399496846,1766417441437,-1000.0,0.00016999,2]
[399496847,1766417441446,-300.0,0.00016999,2]
[399496848,1766417441455,-666.0,0.00016999,2]
[399496849,1766417441464,-423.34883705,0.00016999,2]
[399496850,1766417441473,-3209395.847805,0.00017,2]
[399496851,1766417441500,-23872.8047668,0.00017,2]
[399496852,1766417441511,-844.27,0.00017,2]
[399496853,1766417441522,-12986.48553838,0.00017,2]
[399496854,1766417441534,-9449.84993306,0.00017,2]
[399496855,1766417441546,-564.11572434,0.00017,2]
[399496856,1766417441591,-506.37642362,0.00017,2]
[399496857,1766417441603,-2590.80063541,0.00017,2]
[399496858,1766417441614,-382.54190737,0.00017,2]
[399496859,1766417441626,-893.0,0.00017,2]
[399496860,1766417441637,-6081.79999991,0.00017,2]
[399496865,1766417443092,-3452.0,0.00016251,2]
[399496866,1766417443102,-4319.09119852,0.00016678,2]
[399496867,1766417443111,-456.27413357,0.000167,2]
[399496868,1766417443121,-6996.73884737,0.00017,2]
[399496869,1766417443275,-57274.92085042,0.00017,2]
[399496870,1766417443294,-304.09,0.00017,2]
[399496871,1766417443380,-438.73616867,0.00017,2]
[399496873,1766417446089,-408.0,0.00016131,2]
[399496874,1766417446100,-546.45988669,0.00016789,2]
[399496875,1766417446111,-2928.88233746,0.00016789,2]
[399496876,1766417446195,-843.74897437,0.00016789,2]
[399496877,1766417446204,-150.2,0.00016845,2]
[399496878,1766417446213,-265150.40168801,0.00017,2]
[399496879,1766417446325,-22473.51811598,0.00017,2]
[399496880,1766417446359,-695.29236772,0.00017,2]
[399496881,1766417446369,-381.40194299,0.00017,2]
[399496882,1766417446383,-671.15072076,0.00017,2]
[399496883,1766417446473,-625745.63123483,0.00017,2]
[399496884,1766417446486,-211456.434666,0.00017,2]
[399496885,1766417446499,-50953.57335124,0.00017,2]
[399496886,1766417446515,-9535.13739471,0.00017,2]
[399496887,1766417446526,-137260.40546951,0.00017,2]
[399496890,1766417573689,165.41,5.21e-06,120]
[399496891,1766417573768,165.41,5.21e-06,120]
[399496893,1766417575369,165.41,5.05e-06,120]
[399496894,1766417575440,165.41,5.05e-06,120]
[399496895,1766417576340,165.41,4.89e-06,120]
[399496896,1766417576367,165.41,4.89e-06,120]
[399496897,1766417577148,165.41,4.74e-06,120]
[399496899,1766417931847,199.719,0.000226,120]
[399496900,1766418065491,-8445.42695547,0.0003,120]
[399496901,1766418065581,-172.18,0.00035134,60]
[399496902,1766418065653,-600.0,0.00036,120]
[399496903,1766418065719,-600.0,0.00036,120]
[399496904,1766418065785,-150.0,0.00036,120]
[399496905,1766418065861,-600.0,0.000369,120]
[399496906,1766418065932,-600.0,0.000369,120]
[399496907,1766418066046,-150.0,0.00037,120]
[399496908,1766418066116,-220.04353451,0.00037088,120]
[399496909,1766418066193,-171.88271363,0.000372,120]
[399496910,1766418066267,-172.18,0.00037641,60]
[399496911,1766418066338,-1058.9540929,0.00038,120]
[399496912,1766418066409,-151.0,0.00038335,120]
[399496913,1766418066476,-157.834412,0.00038335,120]
[399496914,1766418066543,-151.0,0.00038335,120]
[399496915,1766418066610,-151.0,0.00038335,120]
[399496916,1766418066680,-151.0,0.00038335,120]
[399496917,1766418066747,-426.04486,0.00038335,120]
[399496918,1766418066821,-426.04486,0.00038335,120]
[399496919,1766418066892,-151.0,0.00038335,120]
[399496920,1766418066967,-151.0,0.00038335,120]
[399496921,1766418067037,-167.443432,0.00038335,120]
[399496922,1766418067109,-426.04486,0.00038335,120]
[399496923,1766418067183,-426.04486,0.00038335,120]
[399496924,1766418067253,-781.200901,0.00038335,120]
[399496925,1766418067323,-781.200901,0.00038335,120]
[399496926,1766418067392,-781.200901,0.00038335,120]
[399496927,1766418067460,-151.0,0.00038335,120]
[399496928,1766418067532,-781.200901,0.00038335,120]
[399496929,1766418067601,-264.751452,0.00038335,90]
[399496930,1766418067670,-264.751452,0.00038335,90]
[399496931,1766418067738,-264.751452,0.00038335,90]
[399496932,1766418067807,-264.751452,0.00038335,90]
[399496933,1766418067877,-611.615535,0.00038335,120]
[399496934,1766418067946,-611.615535,0.00038335,120]
[399496935,1766418068015,-611.615535,0.00038335,120]
[399496936,1766418068084,-611.615535,0.00038335,120]
[399496937,1766418068152,-319.224957,0.00038335,120]
[399496938,1766418068231,-319.224957,0.00038335,120]
[399496939,1766418068300,-319.224957,0.00038335,120]
[399496940,1766418068368,-151.0,0.00038335,120]
[399496941,1766418068436,-151.0,0.00038335,120]
[399496942,1766418068504,-319.224957,0.00038335,120]
[399496943,1766418068571,-500.0,0.00038356,120]
[399496944,1766418068642,-500.0,0.00038383,120]
[399496945,1766418068711,-500.0,0.00038411,120]
[399496946,1766418068781,-500.0,0.00038438,120]
[399496947,1766418068851,-500.0,0.00038466,120]
[399496948,1766418068920,-500.0,0.00038493,120]
[399496949,1766418068998,-500.0,0.0003852,120]
[399496950,1766418069069,-353.40558175,0.00038548,120]
[399496951,1766418069144,-151.0,0.00038609,120]
[399496952,1766418069215,-156.692344,0.00038609,120]
[399496953,1766418069286,-151.0,0.00038609,120]
[399496954,1766418069352,-151.0,0.00038609,120]
[399496955,1766418069419,-168.396474,0.00038609,120]
[399496956,1766418069486,-151.0,0.00038609,120]
[399496957,1766418069552,-218.441076,0.00038609,120]
[399496958,1766418069620,-151.0,0.00038609,120]
[399496959,1766418069691,-500.0,0.00038904,120]
[399496960,1766418069757,-500.0,0.00038904,120]
[399496961,1766418069830,-500.0,0.00038904,120]
[399496962,1766418069898,-529.47303588,0.00038904,120]
[399496963,1766418069969,-151.0,0.00038998,120]
[399496964,1766418070037,-158.72401,0.00038998,120]
[399496965,1766418070104,-172.571327,0.00038998,120]
[399496966,1766418070174,-151.0,0.00038998,120]
[399496967,1766418070243,-151.0,0.00038998,120]
[399496968,1766418070311,-151.0,0.00038998,120]
[399496969,1766418070377,-151.0,0.00038998,120]
[399496970,1766418070445,-162.190026,0.00038998,120]
[399496971,1766418070519,-151.0,0.00039,120]
[399496972,1766418070590,-164.923112,0.00039,120]
[399496973,1766418070658,-151.0,0.00039,120]
[399496974,1766418070723,-155.239757,0.00039,120]
[399496975,1766418070790,-151.0,0.00039,120]
[399496976,1766418070855,-153.178916,0.00039,120]
[399496977,1766418070922,-151.0,0.00039,120]
[399496978,1766418070989,-151.0,0.00039,120]
[399496979,1766418071054,-151.0,0.00039,120]
[399496980,1766418071121,-151.0,0.00039,120]
[399496981,1766418071192,-151.0,0.00039,120]
[399496982,1766418071259,-218.2,0.00039,120]
[399496983,1766418071324,-151.0,0.00039,120]
[399496984,1766418071391,-151.0,0.00039,120]
[399496985,1766418071458,-151.0,0.00039,120]
[399496986,1766418071523,-151.0,0.00039,120]
[399496987,1766418071586,-151.0,0.00039,120]
[399496988,1766418071650,-151.0,0.00039,120]
[399496989,1766418071945,-151.0,0.00039,120]
[399496990,1766418072015,-151.0,0.00039,120]
[399496991,1766418072082,-151.0,0.00039,120]